Cogmind - Beta 12 @@@ ROGUE MODE // 2023.03.30 @ 22:26:07 Player: Shodan Result: Destroyed self via exploding Nuclear Reactor Performance ------------- Evolutions (1) 500 Regions Visited (2) 400 Robots Destroyed (21) 105 Value Destroyed (547) 547 Prototype IDs (1) 20 Alien Tech Used (0) 0 Bonus (0) 0 TOTAL SCORE: 1572 Bonus ------- None Cogmind --------- Core Integrity 0/400 Matter 196/300 Energy 231/250 System Corruption 0% Temperature Hot (272) Movement Rolling (80) Location -9/Materials Parts ------- > --- POWER (1) -------- Ion Engine > --- PROPULSION (2) --- Wheel Wheel > --- UTILITY (2) ------ Small Storage Unit > --- WEAPON (4) ------- Beam Rifle Improved Medium Laser > --- INVENTORY (8) ---- Light Treads Light Treads Peak State ------------ > --- POWER ------------ Light Ion Engine > --- PROPULSION ------- Wheel Wheel > --- UTILITY ---------- Small Storage Unit > --- WEAPON ----------- Beam Rifle Beam Rifle Beam Rifle Beam Cannon > --- INVENTORY -------- Light Treads Light Treads [Rating: 11] Favorites ----------- Power Ion Engine Engine Ion Engine Propulsion Aluminum Leg Leg Aluminum Leg Wheel Wheel Utility Small Storage Unit Storage Small Storage Unit Weapon Small Laser Energy Gun Small Laser Energy Cannon Beam Cannon Build | -11 -10 -9 ------- Run | Jun Mat Mat Slots Evolved 2 | . . 2 Power . | . . . Propulsion . | . . . Utility . | . . . Weapon 2 | . . 2 Parts Attached 14 | . 3 11 Power 2 | . . 2 Engine 2 | . . 2 Core . | . . . Reactor . | . . . Propulsion 4 | . . 4 Treads . | . . . Leg . | . . . Wheel 4 | . . 4 Hover . | . . . Flight . | . . . Utility . | . . . Device . | . . . Storage . | . . . Processor . | . . . Hackware . | . . . Protection . | . . . Artifact . | . . . Weapon 8 | . 3 5 Energy Gun 7 | . 3 4 Energy Cannon 1 | . . 1 Ballistic Gun . | . . . Ballistic Cannon . | . . . Launcher . | . . . Special Weapon . | . . . Impact Weapon . | . . . Slashing Weapon . | . . . Piercing Weapon . | . . . Special Melee Weapon . | . . . Unidentified Prototypes 1 | . . 1 Parts Lost 9 | . 4 5 Power 2 | . 1 1 Propulsion 2 | . 1 1 Utility . | . . . Weapon 5 | . 2 3 Highest Loss Streak 3 | . 2 3 To Critical Strikes . | . . . Average Slot Usage (%) 75 | . 79 70 Engine 10 | . 11 7 Leg 15 | . 25 . Wheel 8 | . . 20 Storage 12 | . 14 11 Energy Gun 24 | . 27 21 Energy Cannon 3 | . . 9 Naked Turns . | . . . Heaviest Build 20 | 13 14 20 Greatest Support 20 | 20 20 20 Greatest Overweight (x) 2 | . . 2 Average Overweight (x) . | . . . Largest Inventory Capacity 8 | . 8 8 Average Capacity 8 | . 8 8 Most Carried 6 | . 6 5 Average Carried 4 | . 5 2 Final Capacity 8 | 8 8 8 Final Carried 6 | 6 5 2 Class Distribution -------------------- 86% | Mutant 13% | Gunner Dominant Class ---------------- Mutant | -10/Materials Mutant | -9/Materials Resources | -11 -10 -9 ----------- Run | Jun Mat Mat Matter Collected 398 | 200 20 178 Remotely . | . . . Salvage Created 734 | . 434 300 Parts 39 | . 24 15 Haulers Intercepted 2 | . 1 1 Recyclers Shooed 1 | . . 1 Parts Field Recycled . | . . . Retrieved Matter . | . . . Parts Self-Destructed . | . . . Prevented . | . . . Kills | -11 -10 -9 ------- Run | Jun Mat Mat Combat Hostiles Destroyed 16 | . 8 8 Guns 12 | . 8 4 AOE 4 | . . 4 Classes Destroyed 7 | . 3 4 Tunneler 1 | . . 1 Hauler 2 | . 1 1 Recycler 1 | . . 1 Operator 1 | . 1 . Swarmer 5 | . . 5 Grunt 10 | . 8 2 Sentry 1 | . . 1 Best Kill Streak 4 | . 2 4 Combat Bots Only 4 | . 2 4 Max Kills in Single Turn 4 | . 1 4 Gunslinging . | . . . Exploded 4 | . . 4 Melee . | . . . Uniques/NPCs Destroyed . | . . . Combat | -11 -10 -9 -------- Run | Jun Mat Mat Damage Taken 1399 | . 529 870 Core 540 | . 118 422 Absorbed by Shields . | . . . Core Remaining (%) 76 | 100 52 . Volleys Fired 62 | . 40 22 Largest 4 | . 2 4 Hottest 228 | . 80 228 Shots Fired 124 | . 72 52 Gun 109 | . 72 37 Cannon 15 | . . 15 Launcher . | . . . Special . | . . . Kinetic . | . . . Thermal 93 | . 41 52 Explosive . | . . . Electromagnetic 31 | . 31 . Robot Hit Streak 8 | . 8 6 Robot Miss Streak 5 | . 5 4 Penetration Max . | . . . Secondary Targets . | . . . Shots Hit Robots 71 | . 47 24 Core Hits 36 | . 22 14 Critical Kills . | . . . Critical Parts Destroyed . | . . . Critical Strikes 3 | . . 3 Burn 3 | . . 3 Melee Attacks . | . . . Impact . | . . . Slashing . | . . . Piercing . | . . . Sneak Attacks . | . . . Combat Hostiles . | . . . Follow-up Attacks . | . . . Damage Inflicted 1345 | . 572 773 Guns 819 | . 572 247 Cannons 139 | . . 139 Explosions 387 | . . 387 Melee . | . . . Ramming . | . . . Kinetic . | . . . Thermal 723 | . 337 386 Explosive 387 | . . 387 Electromagnetic 235 | . 235 . Impact . | . . . Slashing . | . . . Piercing . | . . . Highest Corruption 1 | . 1 . Average Corruption 1 | . 1 . Corruption Purged . | . . . Corruption Blocked . | . . . Overload Shots . | . . . Overflow Damage 94 | . . 94 Projectiles . | . . . Explosions 94 | . . 94 Melee . | . . . Knockbacks . | . . . Impact . | . . . Kinetic . | . . . Secondary . | . . . Self-Inflicted Damage 239 | . . 239 Shots 3 | . . 3 Rammed . | . . . Targets Rammed . | . . . Kicked . | . . . Crushed . | . . . Highest Temperature 687 | . 209 687 Average Temperature 170 | . 78 309 Received Heat Transfer 462 | . 321 141 Effects 26 | . . 26 Shutdowns 3 | . . 3 Interference 5 | . . 5 Matter Decay 6 | . . 6 Short Circuit 3 | . . 3 Damage (minor) 3 | . . 3 Damage (major) 2 | . . 2 Damage (core) 4 | . . 4 Siege Activations . | . . . Robots Corrupted . | . . . Combat Hostiles . | . . . Parts Fried 1 | . 1 . Impact Corruptions . | . . . Robots Melted . | . . . Combat Hostiles . | . . . Parts Melted 6 | . 1 5 Heat Transferred 1923 | . 775 1148 Parts Sabotaged . | . . . Parts Stolen . | . . . Parts Stripped . | . . . Power Chain Reactions . | . . . Missiles Intercepted . | . . . Alert | -11 -10 -9 ------- Run | Jun Mat Mat Peak Influence 254 | . 247 254 Initial 104 | . . 104 Average 160 | . 139 191 Maximum Alert Level 1 | . 1 1 Low Security (%) 64 | . 69 57 Level 1 35 | . 30 42 Level 2 . | . . . Level 3 . | . . . Level 4 . | . . . Level 5 . | . . . High Security . | . . . Max Security . | . . . Squads Dispatched 1 | . 1 . Investigation . | . . . Extermination . | . . . Reinforcement 1 | . 1 . Assault . | . . . Garrison . | . . . Intercept . | . . . Searches Triggered . | . . . Construction Impeded . | . . . Haulers Reinforced . | . . . Active Scanning Responses . | . . . Cargo Convoy Interrupts . | . . . Stealth | -11 -10 -9 --------- Run | Jun Mat Mat Distress Signals . | . . . Communications Jammed . | . . . Distress Signals . | . . . Times Spotted 25 | . 15 10 Peak Tracking Total 5 | . 4 5 Tactical Retreats 2 | . . 2 Traps | -11 -10 -9 ------- Run | Jun Mat Mat Traps Triggered 1 | . 1 . Indirectly . | . . . Trap Hack Attempts . | . . . Triggered . | . . . Disarmed . | . . . Reprogrammed . | . . . Reused . | . . . Traps Extracted . | . . . Installed . | . . . Triggered . | . . . Machines | -11 -10 -9 ---------- Run | Jun Mat Mat Machines Disabled 4 | . 1 3 Max in Single Turn 2 | . 1 2 Machines Repaired . | . . . Machines Sabotaged . | . . . Overloaded Fab Kills . | . . . Hacking | -11 -10 -9 --------- Run | Jun Mat Mat Machines Accessed . | . . . Terminals . | . . . Fabricators . | . . . Repair Stations . | . . . Recycling Units . | . . . Scanalyzers . | . . . Garrison Access . | . . . Total Hacks . | . . . Successful . | . . . Failed . | . . . Catastrophic . | . . . Database Lockouts . | . . . Manual . | . . . Terminals . | . . . Fabricators . | . . . Repair Stations . | . . . Recycling Units . | . . . Scanalyzers . | . . . Garrison Access . | . . . Terminal Hacks . | . . . Fabricator Hacks . | . . . Repair Station Hacks . | . . . Recycling Unit Hacks . | . . . Scanalyzer . | . . . Garrison Access Hacks . | . . . Unauthorized Hacks . | . . . Terminals . | . . . Fabricators . | . . . Repair Stations . | . . . Recycling Units . | . . . Scanalyzers . | . . . Garrison Access . | . . . Data Cores Recovered 1 | . 1 . Used . | . . . Hacking Detections . | . . . Full Trace Events . | . . . Feedback Events . | . . . Feedback Blocked . | . . . Robot Schematics Acquired . | . . . Robots Built . | . . . Authchips . | . . . Time . | . . . Total Robot Build Rating . | . . . Part Schematics Acquired . | . . . Parts Built . | . . . Authchips . | . . . Time . | . . . Total Part Build Rating . | . . . Parts Repaired . | . . . Time . | . . . Parts Recycled . | . . . Recycled Matter . | . . . Retrieved Matter . | . . . Retrieved Components . | . . . Parts Scanalyzed . | . . . Part Schematics Acquired . | . . . Parts Damaged . | . . . Bothacking | -11 -10 -9 ------------ Run | Jun Mat Mat Used RIF Installer . | . . . Robots Hacked . | . . . Non-combat . | . . . Combat . | . . . Robot Hacks Applied . | . . . Relay Couplers Released . | . . . Fabnet Peak Effective % . | . . . Robots Rewired . | . . . Allies Hacked . | . . . Hacks Repelled . | . . . Allies | -11 -10 -9 -------- Run | Jun Mat Mat Total Allies . | . . . Largest Group . | . . . Highest-Rated Group . | . . . Highest-Rated Ally . | . . . Total Orders . | . . . Ally Attacks . | . . . Total Damage . | . . . Kills . | . . . Allies Corrupted . | . . . Allies Melted . | . . . Intel | -11 -10 -9 ------- Run | Jun Mat Mat Robot Analysis Total . | . . . Derelict Logs Recovered . | . . . Drone Launches . | . . . Drone Recoveries . | . . . Exploration | -11 -10 -9 ------------- Run | Jun Mat Mat Turns Passed 597 | . 351 246 Spaces Moved 354 | 1 189 164 Core 1 | . . 1 Treads . | . . . Legs 201 | 1 189 11 Wheels 152 | . . 152 Hover . | . . . Flight . | . . . Fastest Speed 80 | 120 120 80 Average Speed 103 | 120 120 83 Slowest Speed 150 | 120 120 150 Overloaded Moves . | . . . Propulsion Burnouts . | . . . Robots Hopped . | . . . Cave-ins Triggered . | . . . Exploration Rate (%) 29 | 2 66 19 Regions Visited 2 Branch Regions . Pre-discovered Areas . | . . . Known Exits Taken . | . . . Unknown Exits Taken 2 | 1 1 . Scrap Searched . | . . . Spaces Dug . | . . . Terrain Destroyed 46 | . . 46 Melee . | . . . Projectile . | . . . AOE 46 | . . 46 Terrain Rammed . | . . . Walls Destroyed . | . . . Machines Disabled . | . . . Actions | -11 -10 -9 --------- Run | Jun Mat Mat Total 469 | . 240 229 Wait 37 | . 9 28 Move 352 | . 188 164 Hop . | . . . Pick Up . | . . . Fast Attach 9 | . 1 8 Attach 4 | . 1 3 Detach . | . . . Swap 1 | . 1 . Drop 4 | . . 4 Fire 62 | . 40 22 Melee . | . . . Ram . | . . . Kick . | . . . Crush . | . . . Escape Stasis . | . . . Rewire . | . . . Trap . | . . . Miscellaneous . | . . . Route ------- -11/Junkyard -10/Materials (discovered 2 exits: [*Mat] / [*Min]) -9/Materials (discovered 1 exit: [*Min]) History --------- Turn | Location | Event 1 | -11/Junkyard | Discovered new exit (range 0) 1 | -11/Junkyard | Entered Materials 64 | -10/Materials | Discovered new exit (range 12) 312 | -10/Materials | Build established: Mutant 327 | -10/Materials | Discovered new exit (range 5) 352 | -10/Materials | Entered another Materials area 352 | -9/Materials | Evolved 2 slots: Weapon x2 411 | -9/Materials | Lost 3 parts (1n2w) 459 | -9/Materials | Discovered new exit (range 5) 487 | -9/Materials | Core integrity fell below 50% 508 | -9/Materials | Core integrity fell below 20% 598 | -9/Materials | Destroyed self via exploding Nuclear Reactor Last Messages --------------- 00526_ Dropped Wheel. 00530_ K-01 Serf collects debris. 00533_ R-06 Scavenger suffers critical hit (Burn). 00533_ Tractor Beam melted. 00533_ Com. Wheel melted. 00533_ R-06 Scavenger destroyed. 00540_ Acquired Wheel. 00541_ Acquired 59 matter. 00543_ Acquired Ion Engine. 00556_ Acquired 50 matter. 00558_ Acquired 35 matter. 00560_ Acquired 21 matter. 00598_ Nuclear Reactor explodes. 00598_ Beam Cannon destroyed. 00598_ Destroyed Beam Cannon. 00598_ Destroyed Flight Unit. 00598_ S-10 Pest destroyed. 00598_ Nuclear Reactor explodes. 00598_ S-10 Pest destroyed. 00598_ Y-45 Defender destroyed. Map ----- +----------------------------------------------------+ | # # # # | | # + + # """ | | # """ # = # # """ | | # """ # # #?""" | | # """ ?# ###########??## | | ? ?# ######????????? | | #####+## #????????? | | ????# #????????? | | ????# #????????? | | ????# ####### #????????? | | ?####+####### #????????? | | # #? / ???????? | | # """ #? # ?????? | | # """"" #?? #?? ????? | | # """"" #???#????????? | | # """"" #????????????? | | # """ +????????????? | | # #????????????? | | ########+####? ##???????? | | ## ### #???????? | | #???????? | | =%* + ??? | | =% #???????? | | ### #???????? | | +#??# ##???????? | | @ # #????????? | | w +? ???????? | | #?? ??????? | | * """#??? ????? | | # """?????!! ????? | | # #? """?????? ?????? | | #######?? ?????????????? | | ???????????"?????????????? | | ????????????#????????????? | | ?????????????????????????? | | ?????????????????????????? | | ?????????????????????????? | | ?????????????????????????? | | ?????????????????????????? | | ?????????????????????????? | | ?????????????????????????? | | ?????????????????????????? | | ?????????????????????????? | | ?????????????????????????? | | ?????????????????????????? | | ?????????????????????????? | | ?????????????????????????? | | ?????????????????????????? | | ?????????????????????????? | | ?????????????????????????? | +----------------------------------------------------+ Best States ------------- Heat Dissipation 28 Energy Generation 10 Energy Capacity 250 Matter Stores 300 Matter Capacity 300 Sight Range 16 Terrain Scan Density 10 Evasion (%) 55 Item Schematics ----------------- None Robot Schematics ------------------ None Fabricated ------------ Nothing Alien Tech Used ----------------- None Achievements -------------- None Challenges ------------ None Game ------ Seed SupersonicTargetingBoosters Manual? 0 Play Time 00:11:17 Cumulative 112.1 hours Start 2023.03.30 @ 21:35:29 End 2023.03.30 @ 22:26:07 Sessions 2 Manual Loads 0 Difficulty Rogue Special Mode None Game No. 130 Rogue 130 Adventurer 0 Explorer 0 Win Type - Total 1 Types 1/0/0/0/0/0/0/0/0 Lore% 57 Gallery% 61 Achievement% 50 Wizard Run 0 Options --------- ASCII 0 Keyboard 0 Movement Mouse Keybinds 0 Fullscreen 1 Font 24/Smallcaps Map View 76x50 Tactical HUD 1 Map Filters NONE Filters NONE Steam 1 RUN: c4fc693f-b5fa-42f3-9bd2-32d4af095c35